fUSD/lending_fUSD_20240216
["ID","MTS","AMOUNT","RATE_DAILY","PERIOD"]
[314217846,1708089048836,-212.19,0.00048493,2]
[314217847,1708089048845,-422.54,0.00048493,2]
[314217848,1708089048855,-150.0,0.00048493,2]
[314217849,1708089048864,-343.44,0.00048493,2]
[314217850,1708089048874,-150.0,0.00048493,2]
[314217851,1708089048884,-150.0,0.00048493,2]
[314217852,1708089048893,-150.0,0.00048493,2]
[314217853,1708089048902,-822.02,0.00048493,2]
[314217854,1708089048912,-343.44,0.00048493,2]
[314217855,1708089048921,-418.88,0.00048493,2]
[314217856,1708089048930,-422.54,0.00048493,2]
[314217857,1708089048940,-6710.951456,0.00048498,39]
[314217858,1708089048949,-1348.81,0.000486,7]
[314217859,1708089048958,-151.0,0.00048666,2]
[314217860,1708089048968,-250.49088,0.00048666,2]
[314217861,1708089048977,-150.0,0.00048671,8]
[314217862,1708089048986,-49321.48791743,0.000487,120]
[314217863,1708089048999,-58467.2887005,0.000487,120]
[314217864,1708089049011,-21352.74657854,0.000487,120]
[314217865,1708089049023,-776.38978841,0.000487,120]
[314217866,1708089049135,-694.14833885,0.00035342,2]
[314217867,1708089049148,-800.0,0.00035342,2]
[314217868,1708089049159,-581.38216279,0.00035342,2]
[314217869,1708089049170,-337.54297358,0.00035342,2]
[314217870,1708089049183,-482.74832278,0.00035342,2]
[314217871,1708089049192,-3309.510627,0.00036,2]
[314217872,1708089049201,-1352.16881189,0.00037522,2]
[314217873,1708089049210,-200.0,0.0003887,7]
[314217874,1708089049221,-500.0,0.00041095,30]
[314217875,1708089049230,-422.54,0.00048493,2]
[314217876,1708089049240,-418.88,0.00048493,2]
[314217877,1708089049251,-150.0,0.00048493,2]
[314217878,1708089049261,-150.0,0.00048493,2]
[314217879,1708089049271,-343.44,0.00048493,2]
[314217880,1708089049280,-395.65402038,0.000487,120]
[314217881,1708089049298,-711.82499999,0.000487,120]
[314217882,1708089049312,-27256.89242009,0.000487,120]
[314217883,1708089049324,-2618.2,0.000487,120]
[314217884,1708089049337,-19991.97606694,0.000487,120]
[314217885,1708089049347,-3000.0,0.00048767,120]
[314217886,1708089049358,-1000.0,0.000488,2]
[314217887,1708089049368,-154.13603139,0.00048807,2]
[314217888,1708089049378,-3617.81920757,0.00048847,5]
[314217889,1708089049386,-200.0,0.00048887,56]
[314217890,1708089049395,-200.0,0.00048887,55]
[314217891,1708089049404,-200.0,0.00048887,54]
[314217892,1708089049413,-380.0,0.00048928,2]
[314217893,1708089049422,-380.0,0.00048955,2]
[314217894,1708089049431,-380.0,0.00048957,2]
[314217895,1708089049439,-380.0,0.00048961,2]
[314217896,1708089049448,-380.0,0.00048961,2]
[314217897,1708089049457,-386.8,0.00048964,2]
[314217898,1708089049466,-380.0,0.00048966,2]
[314217899,1708089049475,-380.0,0.00048966,2]
[314217900,1708089049484,-311.61,0.00048969,2]
[314217901,1708089049493,-3597.65868816,0.00049,39]
[314217902,1708089049505,-749.91726105,0.00049,39]
[314217903,1708089049516,-1302.12999244,0.00049,39]
[314217904,1708089049527,-1843.11871137,0.00049,39]
[314217905,1708089049538,-1538.44816976,0.00049,39]
[314217906,1708089049549,-1957.4359972,0.00049,39]
[314217907,1708089049560,-2248.46080941,0.00049,39]
[314217908,1708089049571,-3153.81405,0.00049,39]
[314217909,1708089049581,-1410.21415761,0.00049,39]
[314217910,1708089049592,-4594.571706,0.00049,39]
[314217911,1708089049603,-1016.325,0.00049,39]
[314217912,1708089049614,-1196.18608,0.00049,39]
[314217913,1708089049625,-3939.65419447,0.00049,39]
[314217914,1708089049636,-1119.533309,0.00049,39]
[314217915,1708089049655,-500.0,0.00041369,30]
[314217916,1708089049664,-70332.53187353,0.00049,39]
[314217917,1708089049673,-1746.9582429,0.00049,2]
[314217918,1708089049682,-13257.10102335,0.00049,120]
[314217919,1708089049691,-19010.34229478,0.00049,120]
[314217920,1708089049700,-336.35,0.00049,7]
[314217921,1708089049709,-26852.80843179,0.00049,60]
[314217922,1708089049718,-1000.000001,0.00049,14]
[314217923,1708089049727,-206.0,0.00049001,31]
[314217924,1708089049736,-151.52249799,0.00049082,41]
[314217925,1708089049745,-2871.0,0.00049267,2]
[314217926,1708089049754,-150.0,0.00049283,9]
[314217927,1708089049763,-440.28,0.000493,7]
[314217928,1708089049772,-1385.0,0.00049309,5]
[314217929,1708089049782,-1000.0,0.00049315,120]
[314217930,1708089049791,-935.97573009,0.00049315,120]
[314217931,1708089049801,-600.0,0.00049315,120]
[314217932,1708089049810,-210.38640088,0.00049315,120]
[314217933,1708089049819,-150.0,0.00049315,2]
[314217934,1708089049827,-343.44,0.00049315,2]
[314217935,1708089049838,-354.21,0.00049315,2]
[314217936,1708089049847,-419.23,0.00049315,2]
[314217937,1708089049856,-418.88,0.00049315,2]
[314217938,1708089049896,-417.43,0.00049315,2]
[314217939,1708089049905,-800.0,0.00049315,30]
[314217940,1708089049914,-800.0,0.00049315,30]
[314217941,1708089049924,-800.0,0.00049315,30]
[314217942,1708089049932,-800.0,0.00049315,30]
[314217943,1708089049942,-527.37,0.0004939,2]
[314217944,1708089049951,-180.78,0.0004941,2]
[314217945,1708089049960,-394.53059133,0.0004942,90]
[314217946,1708089049969,-1000.0,0.00049421,120]
[314217947,1708089049978,-302.0,0.00049484,4]
[314217948,1708089049987,-1112.4,0.00049564,120]
[314217949,1708089049997,-1000.0,0.000496,2]
[314217950,1708089050006,-167.87,0.00049648,2]
[314217951,1708089050015,-171692.67738304,0.000497,120]
[314217952,1708089050025,-30233.01235571,0.000498,120]
[314217953,1708089050034,-200.0,0.000498,80]
[314217954,1708089050146,-3000.0,0.00049863,120]
[314217955,1708089050156,-151.52249799,0.00049874,44]
[314217956,1708089050166,-200.0,0.00049887,59]
[314217957,1708089050175,-200.0,0.00049887,58]
[314217958,1708089050184,-200.0,0.00049887,57]
[314217959,1708089050194,-150.0,0.00049895,9]
[314217960,1708089050203,-44686.35704773,0.000499,11]
[314217961,1708089050212,-7567.64456378,0.000499,11]
[314217962,1708089050223,-629.0,0.0004999,2]
[314217963,1708089050232,-546.0,0.0004999,2]
[314217964,1708089050241,-238.50154243,0.00049999,120]
[314217965,1708089050251,-500.0,0.00049999,120]
[314217966,1708089050260,-308.68878561,0.00049999,120]
[314217967,1708089050270,-259.42747673,0.00049999,120]
[314217968,1708089050280,-500.0,0.00049999,120]
[314217969,1708089050292,-199.05681205,0.00049999,120]
[314217970,1708089050302,-255.45898475,0.00049999,120]
[314217971,1708089050312,-213.83307952,0.00049999,120]
[314217972,1708089050321,-500.0,0.00049999,120]
[314217973,1708089050332,-535.47016969,0.00049999,120]
[314217974,1708089050340,-500.0,0.00049999,120]
[314217975,1708089050349,-460.25682614,0.00049999,120]
[314217976,1708089050358,-500.0,0.00049999,120]
[314217977,1708089050368,-307.06887816,0.00049999,120]
[314217978,1708089050377,-500.0,0.00049999,120]
[314217979,1708089050386,-164.82339919,0.00049999,120]
[314217980,1708089050395,-100000.0,0.0005,40]
[314217981,1708089050404,-5411.91,0.0005,60]
[314217982,1708089050413,-199999.999999,0.0005,2]
[314217983,1708089050423,-150.0,0.0005,27]
[314217984,1708089050432,-3188.0,0.0005,120]
[314217985,1708089050441,-275628.77957243,0.0005,120]
[314217986,1708089055186,1507.21,0.00039937,33]
[314217987,1708089096002,-733.95560516,0.00031796,4]
[314217988,1708089096023,-6906.22698039,0.00031797,4]
[314217989,1708089108160,6906.22698039,0.00031796,4]
[314217990,1708089130176,6906.22698039,0.00031796,4]
[314217991,1708089132925,-150.0,0.00031796,3]
[314217992,1708089146159,6906.22698039,0.00031796,4]
[314217993,1708089166157,6906.22698039,0.00031796,4]
[314217994,1708089182180,6906.22698039,0.00031796,4]
[314217995,1708089202200,6906.22698039,0.00031796,4]
[314217996,1708089222176,995.83479742,0.00031796,4]
[314217997,1708089546410,-1624.545963,0.00039979,30]
[314217998,1708089546441,-150.0,0.00039979,30]
[314217999,1708089564361,-250.0,0.00036285,111]
[314218000,1708089564413,-10000.0,0.00041684,37]
[314218001,1708089564438,-3250.0,0.000417,87]
[314218002,1708089564463,-308.4792,0.00042,59]
[314218003,1708089564485,-176.05,0.0004215,60]
[314218004,1708089564525,-5191.345813,0.000437,56]
[314218005,1708089564548,-500.0,0.0004376,60]
[314218006,1708089564573,-350.88923306,0.00044,44]
[314218007,1708089564600,-3575.0,0.00044931,105]
[314218008,1708089564622,-300.0,0.00045,45]
[314218009,1708089564645,-1786.47,0.0004543,120]
[314218010,1708089564669,-300.0,0.00046,46]
[314218011,1708089564691,-868.02286732,0.0004606,120]
[314218012,1708089564715,-300.0,0.00047,47]
[314218013,1708089564737,-204.185687,0.00047123,120]
[314218014,1708089564760,-500.0,0.0004774,90]
[314218015,1708089564781,-150.0,0.00047848,60]
[314218016,1708089564807,-100000.0,0.00048,38]
[314218017,1708089564829,-300.0,0.00048,48]
[314218018,1708089564851,-3900.0,0.00048161,117]
[314218019,1708089564874,-890.02085763,0.00048888,120]
[314218020,1708089564898,-100000.0,0.00049,39]
[314218021,1708089564920,-10000.0,0.00049,120]
[314218022,1708089564941,-300.0,0.00049,49]
[314218023,1708089564963,-155.0,0.00049315,60]
[314218024,1708089564986,-3000.0,0.00049315,46]
[314218025,1708089565127,1055.55,0.00049,33]
[314218026,1708089567833,791.61,0.00049,33]
[314218031,1708089808950,-155.69588477,0.00031685,2]
[314218032,1708089808983,-214.71807641,0.00031686,4]
[314218033,1708089809018,-2311.2092,0.00031687,2]
[314218034,1708089809050,-311.7621,0.00031697,2]
[314218035,1708089809087,-457.12659658,0.000317,5]
[314218036,1708089809119,-286.17896661,0.00031785,4]
[314218037,1708089809151,-490.01162584,0.00031785,4]
[314218038,1708089809185,-150.0,0.00031786,3]
[314218039,1708089809217,-4640.25829047,0.00031787,2]
[314218040,1708089809232,-155.69588477,0.00031787,2]
[314218041,1708089809243,-214.71807641,0.00031787,2]
[314218042,1708089809255,-2311.2092,0.00031787,2]
[314218043,1708089809268,-311.7621,0.00031787,2]
[314218044,1708089809279,-457.12659658,0.00031787,2]
[314218045,1708089809291,-286.17896661,0.00031787,2]
[314218046,1708089809320,-490.01162584,0.00031787,2]
[314218047,1708089809343,-150.0,0.00031787,2]
[314218048,1708089809364,-10395.74589611,0.00031787,2]
[314218049,1708089809374,-155.0,0.00031796,2]
[314218050,1708089809384,-1055.590913,0.00031797,2]
[314218052,1708090028720,750.0,0.00025,3]
[314218053,1708090029828,800.0,0.00027,3]
[314218054,1708090030926,850.0,0.00029,3]
[314218061,1708090231804,-214.71807641,0.00031608,4]
[314218062,1708090231813,-192.26596662,0.00031609,2]
[314218063,1708090231823,-399.98577199,0.00031697,5]
[314218064,1708090231833,-155.93948665,0.00031697,2]
[314218065,1708090231842,-490.01162584,0.00031709,4]
[314218066,1708090231852,-608.41,0.00031713,2]
[314218067,1708090231862,-155.0,0.00031795,2]
[314218068,1708090231871,-381.86097074,0.00031797,2]
[314218069,1708090232007,-308050.52604164,0.00031797,2]
[314218070,1708090232020,-786.49569019,0.00031797,2]
[314218071,1708090232032,-14218.31571225,0.00031797,2]
[314218072,1708090232048,-1380.95334019,0.00031797,2]
[314218073,1708090232060,-1510.5632232,0.00031797,2]
[314218074,1708090232072,-6039.52332435,0.00031797,2]
[314218075,1708090232089,-122741.39634401,0.00031797,2]
[314218076,1708090232098,-10343.646,0.00031797,2]
[314218077,1708090232108,-73482.8245877,0.000318,2]
[314218078,1708090232118,-155.93948656,0.00032542,2]
[314218079,1708090232128,-2180.47,0.000326,2]
[314218080,1708090232137,-155.34,0.00033339,2]
[314218081,1708090232146,-155.93948656,0.00033388,2]
[314218082,1708090232156,-160.81,0.00033402,2]
[314218083,1708090232165,-585.6,0.00033402,2]
[314218084,1708090232175,-150.0,0.0003343,2]
[314218085,1708090232184,-250.0,0.0003344,111]
[314218086,1708090232194,-1000.0,0.00033471,2]
[314218087,1708090232203,-250.0,0.00033483,2]
[314218088,1708090232213,-14696.5649175,0.000335,4]
[314218089,1708090232222,-23900.0,0.0003351,2]
[314218090,1708090232232,-2000.0,0.00033533,2]
[314218091,1708090232242,-634.89,0.00033546,2]
[314218092,1708090232252,-865.81,0.00033564,2]
[314218093,1708090232262,-4898.85497251,0.00033621,4]
[314218094,1708090232271,-2675.74,0.00033631,2]
[314218095,1708090232280,-1396.83,0.00033631,2]
[314218096,1708090232290,-155.34,0.00033672,2]
[314218097,1708090232299,-156.83,0.00033821,2]
[314218098,1708090232309,-608.41,0.00033977,2]
[314218099,1708090232318,-155.34,0.00034005,2]
[314218100,1708090232328,-1999.91,0.00034147,2]
[314218101,1708090232338,-218.6328008,0.00034187,2]
[314218102,1708090232347,-1786.47,0.00034197,2]
[314218103,1708090232359,-496.63,0.00034197,2]
[314218104,1708090232371,-155.93948656,0.00034233,2]
[314218105,1708090232380,-250.0,0.00034257,2]
[314218106,1708090232390,-155.34,0.00034339,2]
[314218107,1708090232399,-499.99,0.00034374,2]
[314218108,1708090232408,-158.21,0.00034387,2]
[314218109,1708090232417,-4898.85497251,0.00034495,6]
[314218110,1708090232427,-889.033502,0.000345,2]
[314218111,1708090232436,-159.60829099,0.000345,5]
[314218112,1708090232445,-152.47,0.00034505,5]
[314218113,1708090232454,-150.68,0.00034505,5]
[314218114,1708090232463,-6824.133232,0.0003452,2]
[314218115,1708090232472,-700.09,0.00034521,2]
[314218116,1708090232481,-158.21,0.00034602,2]
[314218117,1708090232490,-155.34,0.00034672,2]
[314218118,1708090232499,-399.98577198,0.00034682,7]
[314218119,1708090232508,-19595.41989,0.0003478,6]
[314218120,1708090232517,-4898.85497251,0.00034784,6]
[314218121,1708090232526,-4898.85497251,0.0003479,6]
[314218122,1708090232535,-1000.0,0.00034793,5]
[314218123,1708090232545,-10236.199849,0.00034794,2]
[314218124,1708090232555,-1333.550253,0.000348,2]
[314218125,1708090232564,-158.21,0.00034817,2]
[314218126,1708090232574,-2670.37132187,0.000349,2]
[314218127,1708090232583,-2670.37132168,0.000349,2]
[314218128,1708090232592,-4898.85497251,0.00034921,6]
[314218129,1708090232601,-13648.266465,0.00034931,2]
[314218130,1708090232613,-4898.85497251,0.0003499,7]
[314218131,1708090232626,-1778.067004,0.00035,2]
[314218132,1708090232635,-460.4071625,0.00035,2]
[314218133,1708090232644,-206.0,0.00035002,2]
[314218134,1708090232655,-155.34,0.00035006,2]
[314218135,1708090232664,-158.21,0.00035032,2]
[314218136,1708090232673,-178.15624709,0.00035047,2]
[314218137,1708090232682,-4898.85497251,0.00035058,7]
[314218138,1708090232692,-169.44737698,0.00035065,2]
[314218139,1708090232701,-17060.333081,0.00035068,2]
[314218140,1708090232710,-155.93948656,0.00035078,2]
[314218141,1708090232754,-167.07,0.00035147,2]
[314218142,1708090232764,-19595.41989,0.00035193,7]
[314218143,1708090232773,-865.81,0.00035208,2]
[314218144,1708090232783,-162.7,0.0003524,2]
[314218145,1708090232792,-158.21,0.00035247,2]
[314218146,1708090232801,-9797.70994502,0.00035332,7]
[314218147,1708090232810,-155.34,0.00035339,2]
[314218148,1708090232819,-23884.466314,0.00035342,2]
[314218149,1708090232828,-158.21,0.00035462,2]
[314218150,1708090232838,-156.83,0.00035584,2]
[314218151,1708090232847,-4898.85497251,0.0003559,8]
[314218152,1708090232856,-2222.583755,0.000356,2]
[314218153,1708090232865,-152.0,0.00035616,7]
[314218154,1708090232878,-2670.37132168,0.00035658,2]
[314218155,1708090232887,-155.34,0.00035672,2]
[314218156,1708090232896,-158.21,0.00035677,2]
[314218157,1708090232906,-700.09,0.00035798,2]
[314218158,1708090232916,-1169.96797914,0.0003589,3]
[314218159,1708090232925,-1169.96797914,0.0003589,3]
[314218160,1708090232934,-158.21,0.00035892,2]
[314218161,1708090232944,-512.69204958,0.000359,2]
[314218162,1708090232953,-155.93948656,0.00035923,2]
[314218163,1708090232962,-14696.5649175,0.0003599,8]
[314218164,1708090232971,-27296.532931,0.00036,2]
[314218165,1708090232980,-3111.617257,0.00036,2]
[314218166,1708090232990,-155.34,0.00036006,2]
[314218167,1708090232999,-29393.1298351,0.00036067,8]
[314218168,1708090233009,-79421.19154126,0.00036077,13]
[314218169,1708090233019,-6529.92203349,0.00036094,12]
[314218170,1708090233029,-761.5739031,0.00036094,12]
[314218171,1708090233039,-158.21,0.00036107,2]
[314218172,1708090233048,-152.0,0.00036164,7]
[314218173,1708090233058,-608.41,0.00036241,2]
[314218174,1708090233067,-158.21,0.00036322,2]
[314218175,1708090233077,-155.34,0.00036339,2]
[314218176,1708090233087,-2312.0,0.000365,3]
[314218177,1708090233097,-158.21,0.00036536,2]
[314218178,1708090233107,-8549.25860892,0.000366,3]
[314218179,1708090233130,-853.15156266,0.000366,3]
[314218180,1708090233142,-741.8811006,0.000366,3]
[314218181,1708090233155,-5867.70872782,0.000366,3]
[314218182,1708090233165,-155.34,0.00036673,2]
[314218183,1708090233175,-154.44,0.0003671,2]
[314218184,1708090233185,-152.0,0.00036712,7]
[314218185,1708090233194,-160.81,0.00036743,2]
[314218186,1708090233204,-158.21,0.00036751,2]
[314218187,1708090233214,-155.93948656,0.00036769,2]
[314218188,1708090233223,-865.81,0.00036852,2]
[314218189,1708090233232,-167.38,0.00036918,2]
[314218190,1708090233241,-206.0,0.00036925,6]
[314218191,1708090233251,-158.21,0.00036966,2]
[314218192,1708090233260,-2854.98353224,0.00037,2]
[314218198,1708090237860,-1715.28872999,0.00037,2]
[314218199,1708090237971,-429.72773777,0.00037,2]
[314218200,1708090237981,-700.09,0.00037075,2]
[314218201,1708090237990,-158.21,0.00037181,2]
[314218202,1708090238000,-2670.37132168,0.00037237,2]
[314218203,1708090238009,-152.0,0.0003726,7]
[314218204,1708090238018,-158.21,0.00037396,2]
[314218205,1708090238027,-158.21,0.00037611,2]
[314218206,1708090238037,-155.93948656,0.00037614,2]
[314218207,1708090238047,-1000.0,0.00037654,2]
[314218208,1708090238056,-71.97145399,0.00037666,8]
[314218209,1708090238068,-328.01431799,0.00037666,8]
[314218210,1708090238077,-180.0,0.00037671,2]
[314218211,1708090238086,-6305.24191031,0.000378,11]
[314218212,1708090238096,-152.0,0.00037808,7]
[314218213,1708090238105,-158.21,0.00037826,2]
[314218214,1708090238114,-196.38166493,0.000379,11]
[314218215,1708090238124,-1216.23593445,0.000379,2]
[314218216,1708090238136,-13167.75597642,0.000379,2]
[314218217,1708090238148,-352075.25601313,0.000379,2]
[314218218,1708090238158,-493.36069678,0.00038,4]
[314218219,1708090238168,-73291.8495848,0.00038142,2]
[314218220,1708090238177,-167.38,0.00038224,2]
[314218221,1708090238187,-700.09,0.00038352,2]
[314218222,1708090238196,-152.0,0.00038356,7]
[314218224,1708090238206,-1043.07,0.00038356,15]
[314218225,1708090238215,-150.0,0.00038356,2]
[314218226,1708090238224,-158.97,0.00038356,2]
[314218227,1708090238233,-155.93948656,0.00038459,2]
[314218228,1708090238242,-865.81,0.00038496,2]
[314218229,1708090238251,-608.41,0.00038505,2]
[314218230,1708090238261,-2670.37132168,0.00038816,2]
[314218232,1708090238270,-206.0,0.00038848,10]
[314218234,1708090238279,-152.0,0.00038904,7]
[314218236,1708090238288,-174.64,0.00038959,2]
[314218238,1708090238297,-337.41950816,0.00038969,11]
[314218240,1708090238306,-3672.67,0.00038998,5]
[314218242,1708090238316,-150.36398041,0.00039113,2]
[314218243,1708090238325,-6305.24191021,0.00039173,12]
[314218244,1708090238335,-150.0,0.00039366,2]
[314218245,1708090238344,-152.0,0.00039452,7]
[314218246,1708090238353,-167.38,0.0003953,2]
[314218247,1708090238362,-700.09,0.0003963,2]
[314218248,1708090238371,-195.483491,0.00039721,2]
[314218249,1708090238381,-231.737997,0.00039721,2]
[314218250,1708090238390,-195.483491,0.00039721,2]
[314218251,1708090238399,-151.58014327,0.00039837,6]
[314218252,1708090238409,-500.0,0.00039879,31]
[314218253,1708090238418,-628.05406174,0.00039879,31]
[314218254,1708090238427,-542.63943107,0.00039879,31]
[314218255,1708090238436,-500.0,0.00039879,31]
[314218256,1708090238446,-500.0,0.00039879,31]
[314218257,1708090238455,-500.0,0.00039879,31]
[314218258,1708090238464,-312.88046879,0.00039879,31]
[314218259,1708090238474,-350.14253306,0.00039879,31]
[314218260,1708090238483,-173.74636087,0.00039879,31]
[314218261,1708090238492,-199.55639065,0.00039879,31]
[314218262,1708090238501,-2098.78973575,0.00039926,5]
[314218263,1708090238512,-1821.2977538,0.0003993,7]
[314218264,1708090238521,-302.66641175,0.0003993,4]
[314218265,1708090238529,-151.33320587,0.0003993,4]
[314218266,1708090238538,-2799.59221627,0.0003993,7]
[314218267,1708090238550,-2369.48528404,0.00039933,7]
[314218268,1708090238559,-294.75078329,0.00039933,4]
[314218269,1708090238569,-155.0,0.00039937,4]
[314218270,1708090238578,-150.0,0.00039969,30]
[314218271,1708090238587,-400.0,0.00039969,5]
[314218272,1708090238597,-169.90704342,0.0004,7]
[314218273,1708090238606,-800.24575574,0.0004,4]
[314218274,1708090238616,-1400.0,0.0004,72]
[314218275,1708090238630,-152.0,0.0004,7]
[314218276,1708090238639,-154.44,0.00040048,2]
[314218277,1708090238648,-160.81,0.00040083,2]
[314218278,1708090238657,-865.81,0.0004014,2]
[314218279,1708090238667,-195.483491,0.00040218,2]
[314218280,1708090238677,-231.737997,0.00040218,2]
[314218281,1708090238686,-195.483491,0.00040218,2]
[314218282,1708090238695,-150.0,0.00040375,2]
[314218283,1708090238705,-2670.37132168,0.00040395,5]
[314218284,1708090238715,-73291.8495848,0.00040535,6]
[314218285,1708090238724,-6305.24191021,0.00040545,14]
[314218286,1708090238734,-152.0,0.00040548,7]
[314218287,1708090238745,-151.58014321,0.00040599,8]
[314218288,1708090238754,-399.98577198,0.00040651,10]
[314218289,1708090238764,-195.483491,0.00040714,2]
[314218290,1708090238773,-231.737997,0.00040714,2]
[314218291,1708090238783,-195.483491,0.00040714,2]
[314218292,1708090238792,-608.41,0.00040769,2]
[314218293,1708090238801,-206.0,0.0004077,15]
[314218294,1708090238810,-319.17,0.000408,4]
[314218295,1708090238819,-319.17,0.000408,4]
[314218296,1708090238828,-319.17,0.000408,4]
[314218297,1708090238837,-319.17,0.000408,4]
[314218298,1708090238847,-319.17,0.000408,4]
[314218299,1708090238856,-319.17,0.000408,4]
[314218300,1708090238865,-319.17,0.000408,4]
[314218301,1708090238876,-319.17,0.000408,4]
[314218302,1708090238885,-319.17,0.000408,4]
[314218303,1708090238894,-319.17,0.000408,4]
[314218304,1708090238903,-319.17,0.000408,4]
[314218305,1708090239034,-319.17,0.000408,4]
[314218306,1708090239044,-319.17,0.000408,4]
[314218307,1708090239053,-319.17,0.000408,4]
[314218308,1708090239063,-319.17,0.000408,4]
[314218309,1708090239072,-319.17,0.000408,4]
[314218310,1708090239082,-319.17,0.000408,4]
[314218311,1708090239091,-319.17,0.000408,4]
[314218312,1708090239100,-319.17,0.000408,4]
[314218313,1708090239109,-319.17,0.000408,4]
[314218314,1708090239118,-153.92,0.000408,4]
[314218315,1708090239128,-153.92,0.000408,4]
[314218316,1708090239137,-167.38,0.00040835,2]
[314218317,1708090239147,-210.0,0.0004089,3]
[314218318,1708090239156,-325.76,0.000409,2]
[314218319,1708090239166,-55555.0,0.00040995,5]
[314218320,1708090239177,-5000.0,0.00040995,3]
[314218321,1708090239186,-155.0,0.00041,2]
[314218322,1708090239196,-150.0,0.00041,20]
[314218323,1708090239205,-177.38,0.00041,2]
[314218324,1708090239214,-73291.8495848,0.00041075,7]
[314218325,1708090239224,-73291.8495848,0.00041085,7]
[314218326,1708090239235,-150.0,0.00041094,7]
[314218327,1708090239245,-515.18907395,0.00041095,30]
[314218328,1708090239255,-500.0,0.00041095,30]
[314218329,1708090239265,-500.0,0.00041095,30]
[314218330,1708090239275,-500.0,0.00041095,30]
[314218331,1708090239284,-519.61141429,0.00041095,30]
[314218332,1708090239294,-507.71296788,0.00041095,30]
[314218333,1708090239303,-505.4011545,0.00041095,30]
[314218334,1708090239313,-500.0,0.00041095,30]
[314218335,1708090239322,-500.0,0.00041095,30]
[314218336,1708090239331,-500.0,0.00041095,30]
[314218337,1708090239340,-500.0,0.00041095,30]
[314218338,1708090239350,-500.0,0.00041095,30]
[314218339,1708090239361,-516.93016848,0.00041095,30]
[314218340,1708090239370,-500.0,0.00041095,30]
[314218341,1708090239384,-500.0,0.00041095,7]
[314218342,1708090239394,-500.0,0.00041095,30]
[314218343,1708090239403,-506.75399928,0.00041095,30]
[314218344,1708090239412,-513.1823499,0.00041095,30]
[314218345,1708090239422,-500.0,0.00041095,30]
[314218346,1708090239431,-508.27768421,0.00041095,30]
[314218347,1708090239440,-510.10744122,0.00041095,30]
[314218348,1708090239450,-509.35584429,0.00041095,30]
[314218349,1708090239461,-500.0,0.00041095,30]
[314218350,1708090239470,-514.47909241,0.00041095,30]
[314218351,1708090239479,-500.0,0.00041095,30]
[314218352,1708090239488,-507.93803855,0.00041095,30]
[314218353,1708090239497,-500.0,0.00041095,30]
[314218354,1708090239506,-531.77240842,0.00041095,30]
[314218355,1708090239515,-500.0,0.00041095,30]
[314218356,1708090239524,-540.42388242,0.00041095,30]
[314218357,1708090239534,-567.19158988,0.00041095,30]
[314218358,1708090239543,-513.0829489,0.00041095,30]
[314218359,1708090239554,-500.0,0.00041095,30]
[314218360,1708090239563,-516.48042295,0.00041095,30]
[314218361,1708090239573,-500.0,0.00041095,30]
[314218362,1708090239582,-513.10644449,0.00041095,30]
[314218363,1708090239592,-512.0486755,0.00041095,30]
[314218364,1708090239601,-492.0,0.00041095,30]
[314218365,1708090239610,-504.14847809,0.00041095,30]
[314218366,1708090239619,-508.87540229,0.00041095,30]
[314218367,1708090239633,-500.0,0.00041095,30]
[314218368,1708090239642,-500.0,0.00041095,30]